bitfinex-derivatives/quotes_SOLF0:USTF0_20241027
["timestamp","ask_amount","ask_price","bid_price","bid_amount"]
[1730031545964,2.8599,175.03,174.94,4.57]
[1730031546158,4.18,175.01,174.94,4.57]
[1730031546866,4.18,175.01,174.97,2.8607]
[1730031547255,2.8599,175.03,174.97,2.8607]
[1730031547456,4.18,175.01,174.98,2.8607]
[1730031548759,2.8601,175.02,174.98,2.8607]
[1730031549067,4.14,175.01,174.98,2.8607]
[1730031551663,4.14,175.01,174.98,9.4107]
[1730031554667,4.14,175.01,174.98,6.55]
[1730031554875,4.14,175.01,174.99,2.8605]
[1730031563777,2.8601,175.02,174.99,2.8605]
[1730031564077,4.14,175.01,174.99,2.8605]
[1730031564675,1.2692,175.04,174.98,6.55]
[1730031564882,4.14,175.02,174.98,6.55]
[1730031566282,4.14,175.02,175.0,2.8603]
[1730031566975,1.2692,175.04,174.98,6.55]
[1730031567179,5.4092,175.04,174.98,6.55]
[1730031567377,1.2692,175.04,174.98,6.55]
[1730031567680,5.4092,175.04,174.98,6.55]
[1730031567880,5.4092,175.04,175.01,2.8601]
[1730031568082,5.4092,175.04,174.98,6.55]
[1730031568576,5.4092,175.04,175.02,2.86]
[1730031572985,2.8594,175.07,174.98,6.55]
[1730031573179,2.8594,175.07,175.03,2.8599]
[1730031573180,4.14,175.06,175.03,2.8599]
[1730031577278,2.8598,175.04,174.93,4.12]
[1730031577481,1.1597,175.05,174.93,4.12]
[1730031579284,1.1597,175.05,175.02,2.86]
[1730031580487,1.1597,175.05,174.93,4.12]
[1730031580688,1.1597,175.05,175.03,2.8598]
[1730031581590,1.1597,175.05,175.02,2.86]
[1730031582096,1.1597,175.05,175.01,2.8602]
[1730031582887,1.1597,175.05,174.94,4.12]
[1730031583083,1.1597,175.05,175.02,2.86]
[1730031585981,1.1597,175.05,174.94,4.12]
[1730031587795,1.1597,175.05,175.02,2.86]
[1730031590499,5.2797,175.05,175.02,2.86]
[1730031593591,2.8597,175.04,175.0,2.8603]
[1730031593791,5.2797,175.05,175.0,2.8603]
[1730031594590,8.1393,175.05,175.01,2.8602]
[1730031594795,1.1597,175.05,174.93,4.12]
[1730031594994,4.12,175.04,174.93,4.12]
[1730031596294,4.12,175.04,175.01,2.8602]
[1730031601893,4.12,175.04,175.01,9.3902]
[1730031604406,4.12,175.04,175.02,2.86]
[1730031606411,6.9798,175.04,175.01,6.53]
[1730031606606,4.12,175.04,175.01,6.53]
[1730031607004,6.9797,175.04,175.01,9.3902]
[1730031609205,4.12,175.04,175.02,2.86]
[1730031609402,4.12,175.04,175.01,6.53]
[1730031610409,4.12,175.04,175.02,2.8601]
[1730031611210,1.1597,175.05,175.01,6.53]
[1730031611398,5.2797,175.05,175.04,2.8597]
[1730031614809,5.2797,175.05,175.03,2.8598]
[1730031615306,5.2797,175.05,174.96,2.8609]
[1730031615307,8.1393,175.05,174.96,2.8609]
[1730031615507,8.1393,175.05,174.93,4.12]
[1730031615906,5.2797,175.05,175.01,2.8601]
[1730031616903,8.1393,175.05,175.01,2.8601]
[1730031617106,5.2797,175.05,175.0,2.8603]
[1730031617307,5.2797,175.05,174.94,4.12]
[1730031617614,8.1393,175.05,174.94,4.12]
[1730031618716,8.1393,175.05,175.0,2.8602]
[1730031619017,8.1393,175.05,174.94,4.12]
[1730031619914,8.1393,175.05,175.0,2.8602]
[1730031620316,8.1393,175.05,174.94,4.12]
[1730031620516,8.1393,175.05,175.0,2.8602]
[1730031621315,5.2797,175.05,175.04,2.8597]
[1730031621513,4.12,175.07,174.94,4.12]
[1730031622012,4.12,175.07,175.04,2.8596]
[1730031622316,4.12,175.06,174.95,5.7223]
[1730031622520,4.12,175.06,174.96,2.1045]
[1730031622709,4.12,175.06,175.04,2.8597]
[1730031626119,4.12,175.06,175.05,2.8596]
[1730031626513,4.12,175.06,174.98,4.12]
[1730031626912,4.12,175.09,174.98,4.12]
[1730031627717,4.12,175.11,174.98,4.12]
[1730031628112,4.12,175.11,175.07,2.8592]
[1730031628312,4.12,175.11,175.02,4.12]
[1730031628510,4.12,175.12,175.08,2.859]
[1730031628724,4.12,175.12,175.03,1.154]
[1730031629425,1.2425,175.2,175.03,1.154]
[1730031629613,5.2771,175.19,175.03,1.154]
[1730031630121,2.8581,175.15,175.09,2.8588]
[1730031630315,4.12,175.14,175.03,1.154]
[1730031631320,4.12,175.14,175.1,2.8587]
[1730031632122,4.12,175.14,175.06,4.12]
[1730031632419,4.12,175.14,175.01,85.57337639]
[1730031632611,1.2644,175.13,175.01,82.75749668]
[1730031632814,2.5421,175.13,175.01,82.75749668]
[1730031633324,2.8587,175.11,175.06,2.8594]
[1730031634216,2.5421,175.13,175.06,2.8594]
[1730031634418,2.8584,175.12,175.06,2.8594]
[1730031634821,2.8588,175.1,175.05,2.8595]
[1730031635121,4.12,175.1,175.05,2.8595]
[1730031635529,4.12,175.1,175.01,82.75749668]
[1730031636113,2.8593,175.07,175.02,2.8599]
[1730031636321,4.12,175.06,175.01,82.75749668]
[1730031636620,4.12,175.06,175.03,2.8598]
[1730031637420,4.12,175.06,175.01,82.75749668]
[1730031637624,4.12,175.09,175.01,82.75749668]
[1730031638523,4.12,175.09,175.01,86.87749668]
[1730031638724,4.12,175.09,175.07,2.8591]
[1730031640023,4.12,175.09,175.02,1.2285]
[1730031640226,6.9584,175.12,175.02,1.2285]
[1730031640921,1.2644,175.13,175.1,2.8587]
[1730031641129,5.3644,175.13,175.1,2.8587]
[1730031641321,1.2644,175.13,175.05,4.1]
[1730031641523,1.2644,175.13,175.09,2.8588]
[1730031641725,1.2644,175.13,175.05,4.1]
[1730031642028,2.8573,175.19,175.13,2.8581]
[1730031642225,2.8573,175.19,175.05,4.1]
[1730031642226,4.1,175.18,175.05,4.1]
[1730031642423,4.1,175.17,175.05,4.1]
[1730031642623,4.1,175.16,175.05,4.1]
[1730031642825,6.9579,175.16,175.1,2.8586]
[1730031643622,2.8579,175.16,175.1,2.8586]
[1730031643826,4.1,175.15,175.1,2.8586]
[1730031644533,6.958,175.15,175.1,2.8586]
[1730031644734,8.1384,175.15,175.1,2.8586]
[1730031645228,5.2804,175.15,175.05,4.1]
[1730031645436,5.2804,175.15,175.11,2.8586]
[1730031646033,15.01038461,175.22,175.05,4.1]
[1730031646034,4.1,175.19,175.05,4.1]
[1730031646934,4.1,175.19,175.03,0.9379]
[1730031647235,4.1,175.19,175.04,4.1]
[1730031647532,6.9574,175.19,175.04,4.1]
[1730031648031,6.9574,175.19,175.04,7.67]
[1730031648423,4.1,175.19,175.04,7.67]
[1730031648926,4.1,175.19,175.14,2.858]
[1730031649441,4.1,175.19,175.15,2.8578]
[1730031650231,5.2804,175.21,175.13,2.8582]
[1730031650431,5.2804,175.21,175.1,1.2064]
[1730031650633,5.2804,175.21,175.1,2.1443]
[1730031651037,1.1804,175.21,175.16,2.8577]
[1730031651232,1.1804,175.21,175.1,2.1443]
[1730031652241,1.1804,175.21,175.11,4.1]
[1730031653031,1.1804,175.21,175.17,2.8575]
[1730031653241,1.1804,175.21,175.11,4.1]
[1730031654034,1.1804,175.21,175.11,6.9043201]
[1730031654435,1.1804,175.21,175.18,2.8574]
[1730031654639,1.1804,175.21,175.11,4.1]
[1730031655241,1.1804,175.21,175.18,2.8573]
[1730031655543,1.1804,175.21,175.15,4.1]
[1730031655934,1.1804,175.21,175.16,2.8578]
[1730031656134,5.2804,175.21,175.1,2.1443]
[1730031656340,5.2804,175.21,175.11,4.1]
[1730031658140,8.1374,175.21,175.16,2.8578]
[1730031658335,5.2804,175.21,175.16,2.8578]
[1730031658541,5.2804,175.21,175.11,4.1]
[1730031659052,2.8573,175.19,175.13,2.8581]
[1730031659348,2.8573,175.19,175.11,4.1]
[1730031659643,5.2804,175.21,175.11,4.1]
[1730031659951,2.8571,175.2,175.15,2.8579]
[1730031660336,1.1804,175.21,175.11,4.1]
[1730031661047,2.8571,175.2,175.11,4.1]
[1730031661244,1.1804,175.21,175.11,4.1]
[1730031661644,1.1804,175.21,175.15,2.8578]
[1730031661952,1.1804,175.21,175.11,4.1]
[1730031662146,2.8572,175.2,175.14,2.858]
[1730031662847,2.8572,175.2,175.12,4.1]
[1730031663151,4.0374,175.21,175.15,2.8579]
[1730031663653,1.1804,175.21,175.12,4.1]
[1730031663851,1.1804,175.21,175.16,2.8577]
[1730031664445,1.1804,175.21,175.12,4.1]
[1730031664652,1.1804,175.21,175.17,2.8576]
[1730031664953,1.1804,175.21,175.12,4.1]
[1730031666353,4.0374,175.21,175.12,4.1]
[1730031666543,4.0374,175.21,175.09,2.86551133]
[1730031666748,4.0374,175.21,175.02,1.2215]
[1730031666749,1.2671,175.2,175.02,1.2215]
[1730031666948,4.1,175.19,175.02,1.2215]
[1730031667147,1.2671,175.2,175.13,2.8582]
[1730031667346,4.1,175.19,175.13,2.8582]
[1730031667546,1.2671,175.2,175.13,2.8582]
[1730031667747,4.1,175.19,175.13,2.8582]
[1730031668050,4.1,175.19,175.05,4.1]
[1730031668347,4.1,175.19,175.14,2.858]
[1730031668552,4.1,175.19,175.09,4.1]
[1730031668553,2.8576,175.17,175.09,4.1]
[1730031668741,4.1,175.19,175.12,2.8584]
[1730031669256,4.1,175.19,175.15,2.8579]
[1730031669450,4.1,175.19,175.09,4.1]
[1730031670343,6.9573,175.19,175.09,4.1]
[1730031670543,4.1,175.19,175.09,4.1]
[1730031670747,2.8577,175.17,175.12,2.8584]
[1730031670946,4.1,175.19,175.06,4.28]
[1730031671247,1.2741,175.18,175.02,1.2215]
[1730031671446,2.8581,175.14,175.08,2.859]
[1730031671650,4.28,175.13,175.08,2.859]
[1730031672050,4.28,175.13,175.09,2.8589]
[1730031673354,2.8585,175.12,175.07,2.8591]
[1730031674945,4.28,175.13,175.07,2.8591]
[1730031675253,4.28,175.13,175.03,4.28]
[1730031675954,4.28,175.13,175.08,2.8589]
[1730031676349,4.28,175.13,175.03,4.28]
[1730031677956,4.28,175.13,175.09,2.8588]
[1730031678154,4.28,175.13,175.03,4.28]
[1730031679452,1.2741,175.18,175.03,4.28]
[1730031679663,4.28,175.17,175.03,4.28]
[1730031679962,7.1376,175.17,175.11,2.8585]
[1730031680264,7.1376,175.17,175.02,1.2215]
[1730031680265,4.28,175.17,175.08,4.28]
[1730031680955,4.28,175.17,175.13,2.8582]
[1730031681156,4.28,175.17,175.08,4.28]
[1730031681555,4.28,175.17,175.12,2.8583]
[1730031682152,4.28,175.17,175.13,2.8582]
[1730031682568,5.5541,175.18,175.08,4.28]
[1730031682956,5.5541,175.18,175.13,2.8582]
[1730031683467,1.1804,175.21,175.12,4.28]
[1730031683856,1.1804,175.21,175.13,1.2285]
[1730031684059,1.1804,175.21,175.17,2.8575]
[1730031684255,1.1804,175.21,175.13,1.2285]
[1730031684865,1.1804,175.21,175.19,2.8572]
[1730031685064,1.1804,175.21,175.2,4.04]
[1730031685264,4.28,175.23,175.2,4.04]
[1730031685866,4.28,175.25,175.2,4.04]
[1730031686253,7.1363,175.25,175.2,6.8971]
[1730031688862,7.1363,175.25,175.2,4.04]
[1730031689070,7.1363,175.25,175.21,2.8569]
[1730031689762,4.28,175.25,174.91,2.83838534]
[1730031689966,4.28,175.25,175.05,1.2148]
[1730031690363,2.8582,175.14,175.08,2.8589]
[1730031690661,1.2297,175.26,175.05,1.2148]
[1730031690867,2.8576,175.17,175.12,2.8583]
[1730031691059,4.28,175.16,175.12,2.8583]
[1730031691259,4.28,175.16,175.05,1.2148]
[1730031691968,4.28,175.16,175.05,2.4271]
[1730031692570,7.1379,175.16,175.05,2.4271]
[1730031692968,4.28,175.16,175.05,2.4271]
[1730031693168,4.28,175.16,175.13,2.8581]
[1730031693466,4.28,175.17,175.07,4.28]
[1730031694972,4.28,175.17,175.13,2.8582]
[1730031695171,4.28,175.17,175.07,4.28]
[1730031695577,4.28,175.17,175.13,2.8582]
[1730031695873,4.28,175.18,175.07,4.28]
[1730031696072,4.28,175.18,175.14,2.8579]
[1730031696272,4.28,175.18,175.07,88.03713871]
[1730031696573,4.28,175.2,175.07,88.03713871]
[1730031697162,4.28,175.2,175.1,2.8586]
[1730031697372,1.2297,175.26,175.11,4.28]
[1730031697569,4.28,175.25,175.12,1.2374]
[1730031697801,1.2297,175.26,175.25,2.8563]
[1730031697970,1.2297,175.26,175.17,4.28]
[1730031698171,4.28,175.28,175.25,5.22]
[1730031698769,2.8561,175.26,175.25,5.22]
[1730031698969,2.8561,175.26,175.25,3.2998]
[1730031699165,4.28,175.28,175.25,3.2998]
[1730031700165,2.8561,175.27,175.25,3.2998]
[1730031700368,4.36,175.26,175.25,3.2998]
[1730031701072,7.2161,175.26,175.25,3.2998]
[1730031701274,4.36,175.26,175.25,3.2998]
[1730031701669,7.2161,175.26,175.25,3.2998]
[1730031702078,4.36,175.26,175.25,3.2998]
[1730031702674,4.36,175.28,175.26,2.8561]
[1730031702868,4.36,175.28,175.25,3.2998]
[1730031703180,4.36,175.3,175.28,2.8558]
[1730031703372,4.36,175.3,175.25,3.2998]
[1730031704174,4.36,175.3,175.17,4.93]
[1730031704380,287.0,175.29,175.17,4.93]
[1730031704775,2.857,175.21,175.17,4.93]
[1730031704973,4.36,175.2,175.17,4.93]
[1730031706183,4.36,175.2,175.17,1.6422]
[1730031706579,2.8573,175.19,175.17,1.6422]
[1730031707277,4.36,175.2,175.17,1.6422]
[1730031708975,4.36,175.21,175.17,1.6422]
[1730031709485,4.36,175.21,175.17,3.2322]
[1730031709986,2.8574,175.18,175.17,3.2322]
[1730031710879,2.8574,175.19,175.17,3.2322]
[1730031711383,2.8568,175.22,175.18,2.8574]
[1730031711581,4.36,175.21,175.17,3.2322]
[1730031711985,7.217,175.21,175.17,3.2322]
[1730031712578,7.217,175.21,175.17,6.0898]
[1730031714283,4.36,175.21,175.18,2.8573]
[1730031714583,4.36,175.21,175.17,3.2322]
[1730031715186,4.36,175.21,175.17,6.8222]
[1730031715382,4.36,175.21,175.17,9.6797]
[1730031715779,4.36,175.21,175.17,6.8222]
[1730031716998,7.2168,175.22,175.17,6.8222]
[1730031717293,7.2168,175.22,175.18,2.8574]
[1730031717692,55.54,175.32,175.17,5.18]
[1730031718196,4.36,175.31,175.18,1.1999]
[1730031718403,2.856,175.28,175.22,2.8567]
[1730031718693,4.36,175.27,175.22,2.8567]
[1730031718894,4.36,175.26,175.22,2.8567]
[1730031720389,7.2162,175.26,175.22,2.8567]
[1730031720597,4.36,175.26,175.2,2.8571]
[1730031720893,2.87988454,175.43,175.21,4.36]
[1730031721099,5.7063,175.45,175.28,2.8558]
[1730031721100,55.52,175.41,175.28,2.8558]
[1730031721297,12.88749139,175.4,175.28,2.8558]
[1730031721491,12.88749139,175.4,175.22,2.4819]
[1730031721492,2.8552,175.32,175.22,2.4819]
[1730031721793,2.8552,175.32,175.23,3.98]
[1730031722100,2.8552,175.32,175.27,2.8559]
[1730031722290,2.8544,175.37,175.26,4.36]
[1730031722496,17.17,175.5,175.27,1.2131]
[1730031722497,12.03346139,175.49,175.27,1.2131]
[1730031722704,5.21379044,175.48,175.27,1.2131]
[1730031722997,0.85379044,175.47,175.28,4.36]
[1730031723490,2.8543,175.38,175.27,1.2131]
[1730031723791,4.36,175.39,175.28,4.36]
[1730031723995,2.8543,175.38,175.23,3.98]
[1730031724204,17.17,175.36,175.14,2.8579]
[1730031724391,17.17,175.34,175.12,3.6959]
[1730031724594,2.8574,175.18,175.12,2.4618]
[1730031725193,7.5574,175.19,175.12,5.3201]
[1730031725789,4.7,175.19,175.15,2.8579]
[1730031725995,4.7,175.19,175.12,2.4618]
[1730031726296,7.5569,175.22,175.14,2.8581]
[1730031726599,7.5569,175.22,175.12,2.4618]
[1730031727285,4.7,175.22,175.12,2.4618]
[1730031728200,2.8553,175.31,175.2,2.8571]
[1730031728394,4.7,175.3,175.17,3.59]
[1730031728705,4.7,175.29,175.17,3.59]
[1730031728904,4.7,175.28,175.17,3.59]
[1730031729197,12.02045921,175.36,175.18,2.8574]
[1730031729198,2.8566,175.24,175.18,2.8574]
[1730031729403,4.7,175.24,175.18,2.8574]
[1730031730201,4.7,175.27,175.17,3.59]
[1730031730392,4.7,175.28,175.17,3.59]
[1730031730597,2.8565,175.24,175.17,3.59]
[1730031730797,2.8565,175.24,175.18,2.8574]
[1730031730991,2.8565,175.24,175.17,3.59]
[1730031731298,4.7,175.27,175.17,3.59]
[1730031732907,4.7,175.27,175.2,2.8571]
[1730031733606,4.7,175.27,175.17,3.59]
[1730031733806,4.7,175.27,175.18,2.8573]
[1730031733807,2.8566,175.24,175.18,2.8573]
[1730031734106,4.7,175.27,175.17,3.59]
[1730031734304,2.8567,175.23,175.18,2.8574]
[1730031734605,4.7,175.22,175.17,3.59]
[1730031735704,2.857,175.21,175.17,3.59]
[1730031735899,4.7,175.22,175.17,3.59]
[1730031737014,2.8573,175.19,175.17,3.59]
[1730031737505,2.8574,175.18,175.17,3.59]
[1730031737804,7.5574,175.18,175.17,3.59]
[1730031745810,55.52,175.25,175.17,3.59]
[1730031746017,2.8573,175.2,175.17,3.59]
[1730031746215,4.7,175.19,175.17,3.59]
[1730031746411,2.8571,175.21,175.17,3.59]
[1730031746618,55.52,175.25,175.17,3.59]
[1730031746814,4.7,175.24,175.17,3.59]
[1730031747518,4.7,175.23,175.19,2.8572]
[1730031747917,4.7,175.23,175.13,4.7]
[1730031748120,4.7,175.25,175.14,1.2138]
[1730031748523,4.7,175.25,175.15,1.2717]
[1730031748725,55.52,175.34,175.22,2.8567]
[1730031749017,4.7,175.33,175.17,4.7]
[1730031749216,2.8558,175.28,175.21,2.8568]
[1730031749421,55.52,175.34,175.22,4.11]
[1730031749626,4.7,175.33,175.23,1.2717]
[1730031749822,4.7,175.33,175.23,2.4855]
[1730031750021,2.8553,175.32,175.27,2.8559]
[1730031750220,4.7,175.33,175.24,1.1895]
[1730031750819,7.555,175.33,175.28,2.8558]
[1730031751022,2.855,175.33,175.28,2.8558]
[1730031751221,7.555,175.33,175.28,2.8558]
[1730031751521,4.7,175.33,175.24,1.1895]
[1730031751725,4.7,175.34,175.25,1.59]
[1730031752026,4.7,175.34,175.27,2.8559]
[1730031752227,4.7,175.34,175.25,1.59]
[1730031753317,2.8544,175.37,175.31,2.8552]
[1730031753521,4.7,175.36,175.31,2.8552]
[1730031754225,4.7,175.36,175.25,1.59]
[1730031754624,7.61226506,175.36,175.25,1.59]
[1730031755129,0.85420693,175.35,175.25,1.59]
[1730031755322,7.61226506,175.36,175.25,1.59]
[1730031755519,0.8542324,175.35,175.25,1.59]
[1730031755726,2.8561,175.26,175.25,1.59]
[1730031756030,7.5161,175.26,175.25,1.59]
[1730031758236,4.66,175.26,175.25,1.59]
[1730031760637,7.5161,175.26,175.25,1.59]
[1730031771433,4.66,175.26,175.25,1.59]
[1730031773337,7.5161,175.26,175.25,1.59]
[1730031782443,4.66,175.26,175.1,3.5633]
[1730031782940,2.8578,175.16,175.1,6.2333]
[1730031783140,4.66,175.15,175.1,6.2333]
[1730031783548,7.518,175.15,175.1,6.2333]
[1730031783750,7.518,175.15,175.1,5.0757]
[1730031783751,4.66,175.15,175.1,5.0757]
[1730031783945,4.66,175.15,175.1,9.5257]
[1730031784248,4.66,175.15,175.1,7.12]
[1730031784646,2.8586,175.11,175.1,7.12]
[1730031784851,7.6786,175.11,175.1,7.12]
[1730031787652,7.6786,175.11,175.1,12.17]
[1730031789950,7.6786,175.11,175.1,10.16773328]
[1730031790151,10.57800012,175.11,175.1,5.05]
[1730031790956,10.57800012,175.11,175.1,2.1232]
[1730031791258,10.57800012,175.11,175.1,0.0001]
[1730031795658,11.43366257,175.11,175.1,0.0001]
[1730031797059,11.43374213,175.11,175.1,0.0001]
[1730031798754,28.60374213,175.11,175.1,0.0001]
[1730031800058,2.8613,174.95,174.92,2.5022]
[1730031800259,4.82,174.94,174.92,2.5022]
[1730031800963,55.6,174.98,174.83,1.1937]
[1730031801160,4.82,174.97,174.84,2.4995]
[1730031801361,2.861,174.96,174.89,2.862]
[1730031801553,0.9724,174.95,174.84,2.4995]
[1730031801761,4.82,174.94,174.84,2.4995]
[1730031801954,4.82,174.96,174.85,4.82]
[1730031802861,55.6,175.07,174.86,1.05155759]
[1730031803064,4.84,175.06,174.86,1.05155759]
[1730031803454,2.8596,175.05,174.98,2.8606]
[1730031803764,2.8596,175.05,174.9,4.84]
[1730031803963,4.84,175.04,174.9,4.84]
[1730031804165,4.84,175.04,174.99,2.8604]
[1730031804566,4.84,175.04,174.9,4.84]
[1730031804766,2.9164,175.03,174.91,1.05136922]
[1730031805069,2.9164,175.03,174.9,4.84]
[1730031805261,2.9164,175.03,174.98,2.8606]
[1730031806164,4.82,175.02,174.9,4.84]
[1730031806368,4.82,175.02,175.0,2.8602]
[1730031806868,4.82,175.02,175.01,2.451]
[1730031808370,4.82,175.02,175.01,5.3112]
[1730031808567,55.6,175.07,175.01,2.451]
[1730031808772,4.82,175.06,175.02,2.86]
[1730031809975,4.82,175.06,175.01,2.451]
[1730031812266,7.6794,175.06,175.01,5.3112]
[1730031812560,4.82,175.06,175.01,5.3112]
[1730031816476,4.82,175.06,175.03,2.8599]
[1730031816776,4.78,175.05,175.03,2.8599]
[1730031818078,4.78,175.05,175.01,2.451]
[1730031818277,55.6,175.07,175.01,2.451]
[1730031818571,4.78,175.06,175.01,2.451]
[1730031818774,4.78,175.06,175.05,2.8596]
[1730031818977,4.78,175.07,175.01,2.451]
[1730031819384,4.78,175.07,175.06,2.8594]
[1730031819581,4.78,175.09,175.01,2.451]
[1730031820973,2.8585,175.12,175.07,2.8591]
[1730031821179,4.78,175.13,175.08,2.3679]
[1730031821678,4.78,175.13,175.1,2.8587]
[1730031822983,4.78,175.13,175.09,2.8589]
[1730031823173,55.58,175.16,175.09,2.8589]
[1730031823378,4.78,175.15,175.1,2.8586]
[1730031823876,7.6381,175.15,175.1,2.8586]
[1730031824076,4.78,175.15,175.08,2.3679]
[1730031824279,4.78,175.15,175.09,2.8589]
[1730031825378,2.8581,175.14,175.09,2.8589]
[1730031825578,4.78,175.15,175.09,2.8589]
[1730031825883,4.78,175.15,175.1,2.8587]
[1730031826887,4.78,175.15,175.08,2.3679]
[1730031827784,2.8585,175.12,175.08,2.3679]
[1730031828081,4.78,175.11,175.08,2.3679]
[1730031829084,4.78,175.11,175.08,1.1872]
[1730031829279,7.6386,175.11,175.08,1.1872]
[1730031830276,7.6386,175.11,175.01,1.1712]
[1730031830277,2.8591,175.08,175.02,2.8599]
[1730031830473,4.78,175.07,175.03,1.2672]
[1730031832890,4.78,175.07,175.03,4.1269]
[1730031835485,7.6392,175.07,175.03,1.2672]
[1730031835788,4.78,175.07,175.03,1.2672]
[1730031836283,4.78,175.07,175.04,2.8596]
[1730031838882,4.78,175.07,175.03,1.2672]
[1730031839583,4.78,175.07,175.05,2.8594]
[1730031839977,4.78,175.08,175.03,1.2672]
[1730031840382,4.78,175.08,175.06,2.8593]
[1730031840690,4.78,175.08,175.03,1.2672]
[1730031841183,4.78,175.08,175.06,2.8593]
[1730031841590,4.78,175.08,175.03,1.2672]
[1730031842482,4.78,175.1,175.08,2.859]
[1730031844785,4.62,175.11,175.08,2.859]
[1730031845888,7.4788,175.1,175.03,1.2672]
[1730031846095,4.62,175.09,175.03,1.2672]
[1730031847295,4.62,175.09,175.06,2.8593]
[1730031850493,4.62,175.12,175.09,2.8588]
[1730031851694,4.62,175.12,175.03,1.2672]
[1730031851895,4.62,175.12,175.1,2.8587]
[1730031852194,4.62,175.12,175.03,1.2672]
[1730031852386,4.62,175.12,175.11,2.8586]
[1730031853694,4.62,175.12,175.04,4.62]
[1730031854699,4.62,175.12,175.1,2.8586]
[1730031855593,4.62,175.12,175.03,1.2672]
[1730031856594,1.199,175.11,175.03,1.2672]
[1730031856798,2.8593,175.07,175.01,1.1712]
[1730031856990,7.4793,175.07,175.01,1.1712]
[1730031857507,4.62,175.07,175.01,1.1712]
[1730031857701,4.62,175.07,174.98,1.1876]
[1730031858297,4.62,175.07,175.04,2.8596]
[1730031859100,4.62,175.07,174.98,1.1876]
[1730031859504,2.8599,175.04,174.99,2.8604]
[1730031859902,4.62,175.03,174.98,1.1876]
[1730031860300,4.62,175.03,174.98,5.7576]
[1730031860599,4.62,175.03,174.98,2.6472]
[1730031860810,2.5247,175.02,174.86,2.3747]
[1730031861095,7.4804,175.01,174.86,2.3747]
[1730031861302,4.62,175.01,174.86,2.3747]
[1730031861690,2.8606,174.99,174.94,2.8612]
[1730031863394,4.62,175.01,174.88,1.2645]
[1730031863999,4.62,175.01,174.97,2.8607]
[1730031867308,4.62,175.01,174.91,2.8617]
[1730031867509,4.62,175.01,174.91,4.62]
[1730031867707,55.56,175.04,174.91,4.62]
[1730031867910,2.3661,175.07,174.91,4.62]
[1730031867911,4.62,175.03,174.91,4.62]
[1730031868108,4.62,175.04,174.91,4.62]
[1730031868301,55.58,175.13,174.91,4.62]
[1730031868503,4.62,175.07,174.91,4.62]
[1730031869210,4.62,175.07,174.95,2.8611]
[1730031869510,4.62,175.07,174.96,8.3589]